bitfinex/quotes_SOLUSD_20250508
["timestamp","ask_amount","ask_price","bid_price","bid_amount"]
[1746679022885,18.05011369,151.72,151.65,44.64964886]
[1746679023088,18.05011369,151.72,151.68,11.45902485]
[1746679023585,6.59108884,151.72,151.68,11.45902485]
[1746679023968,6.59108884,151.72,151.69,11.45902485]
[1746679024284,6.59108884,151.72,151.68,11.45902485]
[1746679024491,18.05011369,151.72,151.68,11.45902485]
[1746679024675,6.59108884,151.72,151.68,11.45902485]
[1746679024877,6.59108884,151.72,151.69,11.45902485]
[1746679025791,6.59108884,151.72,151.65,51.24363991]
[1746679026110,62.53625251,151.74,151.71,11.45902485]
[1746679026278,6.58891744,151.77,151.73,11.45902485]
[1746679026589,6.58891744,151.77,151.74,11.45902485]
[1746679026794,69.12484765,151.78,151.75,11.45902485]
[1746679027169,69.12484765,151.78,151.74,11.45902485]
[1746679027405,80.5838725,151.78,151.73,11.45902485]
[1746679027778,80.5838725,151.78,151.72,6.59108884]
[1746679027981,11.45902485,151.74,151.68,18.64964886]
[1746679028172,11.45902485,151.74,151.7,18.64964886]
[1746679028479,11.45902485,151.74,151.7,11.45902485]
[1746679029290,18.04937126,151.74,151.7,11.45902485]
[1746679029491,18.04937126,151.74,151.7,18.64964886]
[1746679029838,62.53625251,151.84,151.74,18.64964886]
[1746679030113,62.53625251,151.83,151.77,18.64964886]
[1746679030274,62.53625251,151.83,151.79,11.45902485]
[1746679030470,62.53625251,151.83,151.78,11.45902485]
[1746679030693,62.53625251,151.83,151.8,11.45902485]
[1746679031404,62.53625251,151.86,151.82,11.45902485]
[1746679031702,69.12138192,151.86,151.82,11.45902485]
[1746679032911,11.45902485,151.85,151.81,11.45902485]
[1746679033207,69.12138192,151.86,151.8,11.45902485]
[1746679033406,11.45902485,151.85,151.8,11.45902485]
[1746679033696,6.58587987,151.84,151.79,18.64964886]
[1746679033897,6.58587987,151.84,151.8,18.33759063]
[1746679034090,6.58587987,151.84,151.81,18.33759063]
[1746679034401,62.53625251,151.86,151.82,18.33759063]
[1746679034573,62.53625251,151.86,151.83,18.33759063]
[1746679034773,62.53625251,151.86,151.82,18.33759063]
[1746679035172,80.87384314,151.86,151.81,18.33759063]
[1746679035592,87.45893985,151.86,151.81,18.33759063]
[1746679036095,18.33759063,151.85,151.8,36.98723949]
[1746679036587,69.12134922,151.86,151.8,36.98723949]
[1746679036793,18.33759063,151.85,151.8,36.98723949]
[1746679037401,69.12134922,151.86,151.8,36.98723949]
[1746679037605,6.58587987,151.84,151.8,36.98723949]
[1746679038806,62.53625251,151.86,151.8,36.98723949]
[1746679038807,69.12165854,151.86,151.82,18.33759063]
[1746679039099,18.33759063,151.85,151.81,18.33759063]
[1746679040502,18.33759063,151.85,151.8,18.64964886]
[1746679040810,18.33759063,151.85,151.81,18.33759063]
[1746679040989,69.12165854,151.86,151.81,18.33759063]
[1746679041298,87.45924917,151.86,151.81,18.33759063]
[1746679042080,87.45924917,151.86,151.82,18.33759063]
[1746679044898,87.45924917,151.86,151.8,25.23718647]
[1746679044899,87.45924917,151.86,151.81,18.33759063]
[1746679045094,87.45924917,151.86,151.82,18.64964886]
[1746679046314,26.14216157,151.91,151.85,18.33759063]
[1746679046315,62.53625251,151.9,151.85,18.33759063]
[1746679046486,62.53625251,151.9,151.86,18.33759063]
[1746679047802,69.11969466,151.9,151.86,18.33759063]
[1746679048175,87.45728529,151.9,151.84,18.64964886]
[1746679048373,87.45728529,151.9,151.86,18.64964886]
[1746679050931,69.11969466,151.9,151.86,18.33759063]
[1746679051100,87.45728529,151.9,151.86,18.33759063]
[1746679053236,18.33759063,151.88,151.85,18.64964886]
[1746679053414,18.33759063,151.88,151.83,44.33759063]
[1746679053611,18.33759063,151.85,151.83,26.0]
[1746679053813,18.33759063,151.87,151.83,26.0]
[1746679054123,6.58501251,151.86,151.83,26.0]
[1746679054426,24.92260314,151.86,151.83,26.0]
[1746679055026,6.58501251,151.86,151.83,44.33759063]
[1746679056308,16.46062472,151.88,151.83,44.33759063]
[1746679056613,6.58371189,151.89,151.85,18.33759063]
[1746679056993,6.58371189,151.89,151.84,18.64964886]
[1746679057193,24.92130252,151.89,151.85,18.33759063]
[1746679057392,24.92130252,151.89,151.84,36.98723949]
[1746679058212,24.92130252,151.89,151.84,18.64964886]
[1746679058715,24.92130252,151.89,151.85,18.33759063]
[1746679059105,6.58371189,151.89,151.85,18.33759063]
[1746679059302,6.58371189,151.89,151.86,18.33759063]
[1746679059703,6.58371189,151.89,151.85,18.33759063]
[1746679060013,6.58371189,151.89,151.87,18.33759063]
[1746679060211,6.58371189,151.89,151.87,18.64964886]
[1746679060406,6.58371189,151.89,151.85,18.33759063]
[1746679061312,23.0385358,151.92,151.85,18.33759063]
[1746679061511,18.33759063,151.88,151.84,36.98723949]
[1746679061911,18.33759063,151.87,151.84,18.64964886]
[1746679062805,18.33759063,151.86,151.84,18.64964886]
[1746679063019,74.2881854,151.92,151.84,18.64964886]
[1746679063221,18.33759063,151.87,151.84,18.64964886]
[1746679063522,24.92242097,151.87,151.84,18.64964886]
[1746679064304,6.58483034,151.87,151.84,18.64964886]
[1746679065709,11.45679294,151.88,151.84,18.64964886]
[1746679066825,6.58457891,151.87,151.84,18.64964886]
[1746679070427,6.58457891,151.87,151.84,30.1064418]
[1746679070925,62.53625251,151.91,151.86,11.45679294]
[1746679071103,73.99304545,151.91,151.86,11.45679294]
[1746679071299,11.45679294,151.9,151.86,11.45679294]
[1746679071715,11.45679294,151.9,151.85,30.1064418]
[1746679071915,18.04007141,151.9,151.85,30.1064418]
[1746679072121,6.58327847,151.9,151.86,11.45679294]
[1746679072426,18.04007141,151.9,151.86,11.45679294]
[1746679072820,18.04007141,151.9,151.85,30.1064418]
[1746679073719,11.45679294,151.89,151.85,30.1064418]
[1746679074724,18.04007141,151.9,151.85,30.1064418]
[1746679078824,11.45679294,151.89,151.85,30.1064418]
[1746679080733,11.45679294,151.87,151.84,18.64964886]
[1746679080941,6.58414537,151.88,151.85,11.45679294]
[1746679081932,6.58414537,151.88,151.84,11.45679294]
[1746679082442,11.45679294,151.87,151.82,26.0]
[1746679082739,18.04190759,151.86,151.82,18.64964886]
[1746679083110,18.04190759,151.86,151.82,30.1064418]
[1746679083313,6.58511465,151.86,151.82,18.64964886]
[1746679083547,6.58511465,151.86,151.82,30.1064418]
[1746679086540,18.04190759,151.86,151.82,18.64964886]
[1746679086920,18.04190759,151.86,151.82,30.1064418]
[1746679087316,6.58511465,151.86,151.83,11.45679294]
[1746679087517,6.58511465,151.86,151.82,30.1064418]
[1746679088140,6.58511465,151.86,151.82,18.64964886]
[1746679088311,6.58511465,151.86,151.82,30.1064418]
[1746679088517,18.04190759,151.86,151.82,30.1064418]
[1746679089049,6.58511465,151.86,151.82,30.1064418]
[1746679089225,18.04190759,151.86,151.82,30.1064418]
[1746679090218,6.58511465,151.86,151.82,30.1064418]
[1746679092415,23.04323477,151.89,151.82,30.1064418]
[1746679092616,11.45679294,151.87,151.82,30.1064418]
[1746679094419,6.58501251,151.86,151.82,30.1064418]
[1746679098854,6.58501251,151.86,151.83,11.45679294]
[1746679100151,23.04323477,151.89,151.83,11.45679294]
[1746679100450,11.45679294,151.88,151.83,11.45679294]
[1746679100633,11.45679294,151.87,151.83,11.45679294]
[1746679101347,6.58501251,151.86,151.83,11.45679294]
[1746679102057,18.04180545,151.86,151.82,30.1064418]
[1746679102355,18.04180545,151.86,151.81,18.64964886]
[1746679102652,18.04180545,151.86,151.83,18.64964886]
[1746679104428,18.04180545,151.86,151.81,18.64964886]
[1746679104626,18.04180545,151.86,151.83,18.64964886]
[1746679105323,18.04180545,151.86,151.82,18.64964886]
[1746679106042,11.45679294,151.85,151.8,37.45679294]
[1746679106247,11.45679294,151.83,151.8,26.0]
[1746679106746,11.45679294,151.83,151.79,18.64964886]
[1746679106946,85.58379629,151.86,151.75,18.36216157]
[1746679106947,11.45679294,151.8,151.75,18.64964886]
[1746679107157,11.45679294,151.79,151.75,30.1064418]
[1746679107340,18.04480309,151.8,151.75,11.45679294]
[1746679107539,6.58801015,151.8,151.75,11.45679294]
[1746679107851,11.45679294,151.79,151.75,11.45679294]
[1746679108062,11.45679294,151.77,151.73,13.00479294]
[1746679108232,11.45679294,151.76,151.72,29.67679294]
[1746679108556,11.45679294,151.76,151.72,18.64964886]
[1746679109138,11.45679294,151.75,151.72,18.64964886]
[1746679109356,11.45679294,151.74,151.72,18.64964886]
[1746679109533,11.45679294,151.74,151.71,26.0]
[1746679110756,11.45679294,151.74,151.71,18.64964886]
[1746679111261,11.45679294,151.73,151.7,18.64964886]
[1746679112744,11.45679294,151.72,151.68,18.64964886]
[1746679113340,11.45679294,151.71,151.68,18.64964886]
[1746679113835,11.45679294,151.69,151.65,11.45679294]
[1746679114038,11.45679294,151.66,151.62,6.59543595]
[1746679114344,11.45679294,151.66,151.62,18.05222889]
[1746679114741,11.45679294,151.66,151.61,44.0525702]
[1746679114939,11.45679294,151.65,151.61,26.0]
[1746679115148,11.45679294,151.64,151.58,6.5971764]
[1746679115363,11.45679294,151.63,151.59,11.45679294]
[1746679115839,11.45679294,151.63,151.6,18.64964886]
[1746679116555,11.45679294,151.62,151.59,18.64964886]
[1746679117337,11.45679294,151.63,151.59,18.64964886]
[1746679117537,11.45679294,151.63,151.59,25.24632954]
[1746679117754,11.45679294,151.63,151.59,36.70312248]
[1746679117937,11.45679294,151.64,151.6,11.45679294]
[1746679118251,11.45679294,151.66,151.61,11.45679294]
[1746679118555,11.45679294,151.65,151.61,11.45679294]
[1746679118855,11.45679294,151.64,151.59,25.24632954]
[1746679119153,69.12962354,151.67,151.59,30.1064418]
[1746679119359,11.45679294,151.63,151.59,30.1064418]
[1746679119562,11.45679294,151.64,151.6,11.45679294]
[1746679119742,11.45679294,151.65,151.6,11.45679294]
[1746679120060,73.99304545,151.66,151.61,11.45679294]
[1746679120246,73.99304545,151.66,151.62,11.45679294]
[1746679121360,73.99304545,151.66,151.61,11.45679294]
[1746679121543,73.99304545,151.66,151.61,18.0526369]
[1746679121742,11.45679294,151.65,151.61,6.59584396]
[1746679121958,11.45679294,151.65,151.6,18.05306512]
[1746679122155,11.45679294,151.65,151.61,11.45679294]
[1746679122864,11.45679294,151.65,151.61,18.05264512]
[1746679123042,88.53625251,151.69,151.63,30.1064418]
[1746679123358,11.45679294,151.64,151.59,18.64964886]
[1746679123565,11.45679294,151.64,151.6,11.45679294]
[1746679124176,11.45679294,151.64,151.59,30.1064418]
[1746679124555,6.59326168,151.67,151.59,30.1064418]
[1746679124759,6.59326168,151.67,151.61,11.45679294]
[1746679124943,11.45679294,151.65,151.61,11.45679294]
[1746679126573,11.45679294,151.65,151.6,30.1064418]
[1746679126774,6.59456607,151.64,151.6,30.1064418]
[1746679129369,6.59326168,151.67,151.61,11.45679294]
[1746679129570,11.45679294,151.65,151.61,11.45679294]
[1746679130975,6.59456607,151.64,151.6,30.1064418]
[1746679131181,18.05135901,151.64,151.58,6.59706167]
[1746679131474,11.45679294,151.63,151.58,18.64964886]
[1746679131676,11.45679294,151.63,151.58,30.1064418]
[1746679131975,11.45679294,151.63,151.59,11.45679294]
[1746679132352,18.05135901,151.64,151.59,11.45679294]
[1746679133266,6.59456607,151.64,151.59,11.45679294]
[1746679133470,18.05135901,151.64,151.6,11.45679294]
[1746679133676,6.59456607,151.64,151.6,11.45679294]
[1746679133877,6.59456607,151.64,151.61,11.45679294]
[1746679134373,6.59456607,151.64,151.6,11.45679294]
[1746679136580,69.13037372,151.66,151.63,11.45679294]
[1746679136760,69.13037372,151.66,151.62,11.45679294]
[1746679137473,11.45679294,151.65,151.61,30.1064418]
[1746679137778,69.13037372,151.66,151.62,11.45679294]
[1746679138081,80.58716666,151.66,151.62,11.45679294]
[1746679138684,80.58716666,151.66,151.61,30.1064418]
[1746679138887,69.13037372,151.66,151.61,30.1064418]
[1746679139183,80.58716666,151.66,151.61,30.1064418]
[1746679140281,11.45679294,151.65,151.61,18.64964886]
[1746679140475,11.45679294,151.64,151.58,18.64964886]
[1746679140661,11.45679294,151.64,151.6,18.64964886]
[1746679141180,6.59500098,151.63,151.6,18.64964886]
[1746679145189,6.59500098,151.63,151.6,11.45679294]
[1746679145686,6.59500098,151.63,151.6,18.64964886]
[1746679145893,62.53625251,151.66,151.62,11.45679294]
[1746679146072,62.53625251,151.72,151.65,11.45679294]
[1746679146396,62.53625251,151.72,151.68,11.45679294]
[1746679146889,0.14216157,151.67,151.58,27.618]
[1746679147068,11.45679294,151.63,151.58,39.07479294]
[1746679147383,11.45679294,151.63,151.59,18.64964886]
[1746679148185,6.59413122,151.65,151.59,18.64964886]
[1746679148358,11.45679294,151.63,151.59,18.64964886]
[1746679150492,18.05198442,151.63,151.59,18.64964886]
[1746679150986,11.45679294,151.63,151.59,18.64964886]
[1746679152293,18.05148084,151.64,151.59,30.1064418]
[1746679154289,18.05148084,151.64,151.59,18.64964886]
[1746679154606,18.05148084,151.64,151.59,30.1064418]
[1746679154769,11.45679294,151.63,151.59,30.1064418]
[1746679154971,11.45679294,151.63,151.59,36.7031809]
[1746679155389,69.13010009,151.66,151.61,18.64964886]
[1746679155591,80.58689303,151.66,151.62,11.45679294]
[1746679156172,80.58689303,151.66,151.61,11.45679294]
[1746679156574,73.99304545,151.66,151.61,11.45679294]
[1746679157589,62.53625251,151.66,151.62,18.64964886]
[1746679157782,62.53625251,151.66,151.62,30.1064418]
[1746679158090,80.58684167,151.66,151.62,30.1064418]
[1746679158294,80.58684167,151.66,151.62,18.64964886]
[1746679159078,62.53625251,151.7,151.62,18.64964886]
[1746679159280,62.53625251,151.7,151.69,11.45679294]
[1746679159778,62.53625251,151.7,151.69,36.69883417]
[1746679160273,26.25760972,151.76,151.69,36.69883417]
[1746679160474,26.25760972,151.76,151.73,11.45679294]
[1746679161194,69.12525804,151.77,151.75,11.45679294]
[1746679161385,69.12525804,151.77,151.74,11.45679294]
[1746679162194,80.58205098,151.77,151.73,11.45679294]
[1746679162496,80.58205098,151.77,151.72,11.45679294]
[1746679163704,18.046516,151.76,151.72,11.45679294]
[1746679163882,11.45679294,151.75,151.71,30.1064418]
[1746679164194,11.45679294,151.75,151.7,11.45679294]
[1746679165804,6.59022011,151.74,151.7,11.45679294]
[1746679166181,18.04701305,151.74,151.7,11.45679294]
[1746679166479,18.04701305,151.74,151.7,18.64964886]
[1746679166875,11.45679294,151.72,151.68,26.0]
[1746679167195,11.45679294,151.72,151.68,37.45679294]
[1746679167492,11.45679294,151.72,151.68,26.0]
[1746679167799,6.59195781,151.7,151.68,26.0]
[1746679168503,18.04847128,151.71,151.68,26.0]
[1746679169003,11.45679294,151.71,151.68,26.0]
[1746679169176,11.45679294,151.72,151.68,26.0]
[1746679169574,11.45679294,151.71,151.68,26.0]
[1746679170307,6.59124928,151.72,151.68,26.0]
[1746679170490,18.04804222,151.72,151.68,26.0]
[1746679171283,11.45679294,151.71,151.68,26.0]
[1746679171789,11.45679294,151.69,151.65,44.64964886]
[1746679173107,6.59108884,151.72,151.65,62.70049499]
[1746679173494,6.59108884,151.72,151.66,11.45679294]
[1746679173679,11.45679294,151.71,151.65,51.24370205]
[1746679173885,11.45679294,151.7,151.65,62.70049499]
[1746679175311,6.59108884,151.72,151.65,62.70049499]
[1746679175607,11.45679294,151.7,151.66,11.45679294]
[1746679175907,11.45679294,151.7,151.65,62.70049499]
[1746679176811,18.04888026,151.7,151.65,62.70049499]
[1746679177305,6.59208732,151.7,151.65,62.70049499]
[1746679177484,18.04888026,151.7,151.65,62.70049499]
[1746679178914,11.45679294,151.69,151.65,56.1064418]
[1746679179212,11.45679294,151.68,151.65,44.64964886]
[1746679179391,11.45679294,151.66,151.62,18.64964886]
[1746679179586,11.45679294,151.63,151.58,24.67677335]
[1746679179785,11.45679294,151.63,151.58,36.13356629]
[1746679180008,11.45679294,151.63,151.59,44.64964886]
[1746679180986,6.59493208,151.64,151.59,56.1064418]
[1746679181198,11.45679294,151.63,151.59,56.1064418]
[1746679181395,11.45679294,151.63,151.59,44.64964886]
[1746679181721,11.45679294,151.61,151.59,44.64964886]
[1746679181908,11.45679294,151.6,151.55,11.45679294]
[1746679182090,11.45679294,151.6,151.56,44.64964886]
[1746679182290,11.45679294,151.6,151.56,18.64964886]
[1746679182589,18.05320204,151.6,151.54,6.59856963]
[1746679182906,11.45679294,151.59,151.55,18.64964886]
[1746679183095,11.45679294,151.58,151.55,44.64964886]
[1746679183512,11.45679294,151.58,151.55,18.64964886]
[1746679183815,11.45679294,151.58,151.55,44.64964886]
[1746679184204,11.45679294,151.59,151.55,44.64964886]
[1746679184512,6.5964091,151.6,151.55,62.70488728]
[1746679185023,11.45679294,151.59,151.55,62.70488728]
[1746679185306,11.45679294,151.59,151.55,51.24809434]
[1746679185726,0.14216157,151.63,151.55,62.70488728]
[1746679185905,11.45679294,151.59,151.55,62.70488728]
[1746679186719,11.45679294,151.59,151.55,51.24809434]
[1746679187011,11.45679294,151.59,151.55,44.64964886]
[1746679187815,11.45679294,151.59,151.55,56.1064418]
[1746679188211,11.45679294,151.59,151.55,62.70485131]
[1746679188713,6.59621787,151.61,151.55,62.70485131]
[1746679188917,11.45679294,151.6,151.55,62.70485131]
[1746679189116,16.48641519,151.64,151.56,11.45679294]
[1746679189117,6.59541998,151.63,151.56,11.45679294]
[1746679189315,6.59541998,151.63,151.58,18.64964886]
[1746679189519,11.45679294,151.62,151.58,18.64964886]
[1746679189719,11.45679294,151.6,151.56,30.1064418]
[1746679190098,11.45679294,151.61,151.56,36.70448799]
[1746679190500,11.45679294,151.6,151.56,36.70448799]
[1746679190920,11.45679294,151.6,151.56,30.1064418]
[1746679192115,11.45679294,151.6,151.56,36.70443878]
[1746679193227,11.45679294,151.62,151.58,18.64964886]
[1746679193604,11.45679294,151.61,151.56,36.70443878]
[1746679193805,11.45679294,151.6,151.56,36.70443878]
[1746679194329,62.53625251,151.64,151.56,36.70443878]
[1746679194628,11.45679294,151.61,151.56,36.70443878]
[1746679196234,11.45679294,151.6,151.56,25.24764584]
[1746679196528,18.05268006,151.61,151.56,36.70443878]
[1746679198529,11.45679294,151.61,151.56,36.70443878]
[1746679199139,11.45679294,151.61,151.58,18.64964886]
[1746679199518,11.45679294,151.62,151.58,18.64964886]
[1746679200643,11.45679294,151.63,151.58,18.05378868]
[1746679200823,11.45679294,151.63,151.6,18.64964886]
[1746679201027,11.45679294,151.62,151.6,18.64964886]
[1746679201231,62.53625251,151.64,151.6,18.64964886]
[1746679201648,11.45679294,151.62,151.6,18.64964886]
[1746679202474,11.45679294,151.61,151.58,26.0]
[1746679202659,11.45679294,151.59,151.53,84.407]
[1746679202943,11.45679294,151.59,151.57,26.0]
[1746679203345,11.45679294,151.58,151.56,18.64964886]
[1746679205726,6.59500098,151.63,151.56,30.1064418]
[1746679205927,11.45679294,151.61,151.56,30.1064418]
[1746679206752,6.59500098,151.63,151.56,36.70419812]
[1746679206935,69.13097365,151.64,151.59,18.64964886]
[1746679207439,73.99304545,151.64,151.6,18.64964886]
[1746679207739,18.05108873,151.65,151.6,30.1064418]
[1746679208038,11.45679294,151.64,151.59,18.05328239]
[1746679208748,11.45679294,151.64,151.59,11.45679294]
[1746679209045,11.45679294,151.63,151.59,30.1064418]
[1746679209449,18.05182001,151.63,151.59,30.1064418]
[1746679209743,18.05182001,151.63,151.59,18.64964886]
[1746679210629,11.45679294,151.62,151.58,37.45679294]
[1746679210828,11.45679294,151.61,151.59,18.64964886]
[1746679211147,11.45679294,151.6,151.58,26.0]
[1746679211547,18.05316151,151.6,151.58,26.0]
[1746679211731,18.05316151,151.6,151.56,18.64964886]
[1746679212036,11.45679294,151.59,151.56,44.64964886]
[1746679212943,18.05363127,151.59,151.56,44.64964886]
[1746679213155,11.45679294,151.58,151.56,44.64964886]
[1746679213535,18.05363127,151.59,151.56,44.64964886]
[1746679214451,23.08250345,151.63,151.56,44.64964886]
[1746679214658,11.45679294,151.59,151.56,44.64964886]
[1746679214958,23.08250345,151.63,151.56,44.64964886]
[1746679215142,11.45679294,151.6,151.56,44.64964886]
[1746679215454,23.08250345,151.63,151.56,44.64964886]
[1746679215760,23.08250345,151.63,151.57,11.45679294]
[1746679216059,11.45679294,151.62,151.57,11.45679294]
[1746679216558,18.05264675,151.62,151.57,11.45679294]
[1746679217034,11.45679294,151.61,151.57,11.45679294]
[1746679217561,6.59508407,151.63,151.59,18.64964886]
[1746679217758,18.05187701,151.63,151.59,18.64964886]
[1746679217937,11.45679294,151.62,151.59,18.64964886]
[1746679218768,6.59544709,151.62,151.59,18.64964886]
[1746679218940,11.45679294,151.61,151.57,18.64964886]
[1746679220059,11.45679294,151.6,151.57,18.64964886]
[1746679220261,11.45679294,151.59,151.57,18.64964886]
[1746679220649,11.45679294,151.61,151.57,18.64964886]
[1746679220965,18.05292801,151.61,151.57,18.64964886]
[1746679221141,6.59613507,151.61,151.57,18.64964886]
[1746679221342,18.05292801,151.61,151.57,18.64964886]
[1746679221662,11.45679294,151.6,151.57,18.64964886]
[1746679221963,18.39673426,151.6,151.57,18.64964886]
[1746679222848,24.9931438,151.6,151.59,59.49399673]
[1746679223051,24.9931438,151.6,151.59,40.84434787]
[1746679224768,6.59640954,151.6,151.59,40.84434787]
[1746679224955,24.9931438,151.6,151.59,40.84434787]
[1746679227050,24.9931438,151.6,151.57,18.64964886]
[1746679227463,18.39673426,151.6,151.57,18.64964886]
[1746679227670,24.99263633,151.61,151.57,18.64964886]
[1746679228775,18.39673426,151.6,151.57,18.64964886]
[1746679229375,24.99313099,151.6,151.57,18.64964886]
[1746679230469,24.99275246,151.61,151.57,18.64964886]
[1746679230966,6.59500098,151.63,151.57,25.24726025]
[1746679231161,18.39673426,151.62,151.57,43.64399451]
[1746679231873,24.99256122,151.62,151.57,43.64399451]
[1746679233274,24.99276504,151.61,151.57,18.64964886]
[1746679235570,62.53625251,151.64,151.57,43.64375146]
[1746679235754,18.39673426,151.63,151.59,18.64964886]
[1746679235955,18.39673426,151.61,151.57,18.64964886]
[1746679236253,18.39673426,151.6,151.57,18.64964886]
[1746679238477,18.39673426,151.59,151.57,18.64964886]
[1746679239366,18.39673426,151.58,151.57,18.64964886]
[1746679239673,18.39673426,151.59,151.57,18.64964886]
[1746679240371,6.59640151,151.6,151.57,18.64964886]
[1746679240576,18.39673426,151.61,151.57,18.64964886]
[1746679241169,18.39673426,151.6,151.57,18.64964886]
[1746679242365,6.59500098,151.63,151.57,18.64964886]
[1746679242678,18.39673426,151.6,151.57,18.64964886]
[1746679243261,6.59500098,151.63,151.57,43.6439805]
[1746679243461,18.39673426,151.63,151.59,44.64964886]
[1746679243664,24.99144262,151.64,151.59,63.04638312]
[1746679243870,18.08763479,151.64,151.59,56.14257529]
[1746679244182,11.49292643,151.63,151.59,44.64964886]
[1746679244989,18.08833329,151.63,151.59,44.64964886]
[1746679245382,11.49292643,151.62,151.59,44.64964886]
[1746679246885,11.49292643,151.6,151.56,18.64964886]
[1746679247176,11.49292643,151.59,151.58,26.0]
[1746679247363,11.49292643,151.6,151.58,26.0]
[1746679248661,18.0893116,151.6,151.58,26.0]
[1746679249162,11.49292643,151.59,151.58,26.0]
[1746679256273,6.59632489,151.6,151.58,26.0]
[1746679256489,11.49292643,151.59,151.58,26.0]
[1746679256681,6.59632489,151.6,151.53,1.607]
[1746679256991,11.49292643,151.57,151.54,18.64964886]
[1746679257191,11.49292643,151.57,151.56,26.0]
[1746679257494,11.49292643,151.57,151.51,18.02]
[1746679257675,11.49292643,151.55,151.52,18.64964886]
[1746679257870,6.59761166,151.57,151.52,44.64964886]
[1746679257871,11.49292643,151.54,151.52,44.64964886]
[1746679258094,11.49292643,151.53,151.5,18.64964886]
[1746679258264,6.59761166,151.57,151.52,26.0]
[1746679258771,11.49292643,151.55,151.52,26.0]
[1746679260170,6.59832205,151.56,151.52,26.0]
[1746679260376,18.09124848,151.56,151.52,26.0]
[1746679261497,18.09053809,151.57,151.52,37.49292643]
[1746679261694,18.09053809,151.57,151.53,18.64964886]
[1746679261898,62.53625251,151.58,151.54,11.49292643]
[1746679262100,6.59687073,151.59,151.52,32.59977556]
[1746679262101,18.08979716,151.59,151.55,30.14257529]
[1746679262973,18.08979716,151.59,151.55,18.64964886]
[1746679263176,11.49292643,151.58,151.55,18.64964886]
[1746679264102,11.49292643,151.58,151.53,18.64964886]
[1746679264301,11.49292643,151.58,151.55,18.64964886]
[1746679265402,6.59687073,151.59,151.55,30.14257529]
[1746679265598,62.53625251,151.62,151.57,11.49292643]
[1746679265791,6.59543595,151.62,151.58,11.49292643]
[1746679265983,18.08836238,151.62,151.58,11.49292643]
[1746679266185,18.08836238,151.62,151.58,18.64964886]
[1746679266489,11.49292643,151.61,151.56,30.14257529]
[1746679266701,11.49292643,151.6,151.53,0.14216157]
[1746679266903,11.49292643,151.6,151.56,18.64964886]
[1746679267397,6.5967412,151.59,151.56,18.64964886]
[1746679268086,18.08966763,151.59,151.54,11.49292643]
[1746679268303,18.08966763,151.59,151.55,18.64964886]
[1746679268485,6.5967412,151.59,151.56,11.49292643]
[1746679269094,6.5967412,151.59,151.55,11.49292643]
[1746679269290,11.49292643,151.56,151.47,4.78954773]
[1746679269492,62.53625251,151.58,151.52,11.49292643]
[1746679269493,6.59761166,151.57,151.52,11.49292643]
[1746679269687,18.09053809,151.57,151.53,18.64964886]
[1746679272289,6.59761166,151.57,151.53,18.64964886]
[1746679272497,18.09053809,151.57,151.53,18.64964886]
[1746679273707,6.5973342,151.58,151.55,30.14257529]
[1746679273893,11.49292643,151.61,151.56,11.49292643]
[1746679274100,45.84255056,151.62,151.57,11.49292643]
[1746679274296,27.98255056,151.62,151.57,11.49292643]
[1746679275013,6.59587098,151.61,151.57,11.49292643]
[1746679275237,6.59560447,151.62,151.59,11.49292643]
[1746679275713,18.0885309,151.62,151.57,11.49292643]
[1746679275905,18.0885309,151.62,151.56,18.64964886]
[1746679276083,11.49292643,151.6,151.55,30.14257529]
[1746679276397,11.49292643,151.59,151.55,30.14257529]
[1746679277104,11.49292643,151.6,151.55,30.14257529]
[1746679277545,11.49292643,151.59,151.53,1.6596]
[1746679277819,11.49292643,151.57,151.53,18.64964886]
[1746679278325,11.49292643,151.56,151.52,11.49292643]
[1746679278618,64.09425251,151.61,151.49,1.6566]
[1746679278619,11.49292643,151.53,151.49,1.6566]
[1746679278812,11.49292643,151.53,151.48,11.49292643]
[1746679279114,18.09263514,151.53,151.49,18.64964886]
[1746679279298,6.59970871,151.53,151.49,30.14257529]
[1746679281093,6.59848234,151.55,151.5,11.49292643]
[1746679281322,11.49292643,151.54,151.5,11.49292643]
[1746679281531,11.49292643,151.54,151.49,30.14257529]
[1746679283223,6.59935326,151.53,151.5,11.49292643]
[1746679283524,18.09227969,151.53,151.49,18.64964886]
[1746679283709,18.09227969,151.53,151.49,30.14257529]
[1746679284218,6.59935326,151.53,151.49,18.64964886]
[1746679284424,6.59935326,151.53,151.49,30.14257529]
[1746679285117,18.09227969,151.53,151.49,11.49292643]
[1746679285324,18.09227969,151.53,151.48,37.49292643]
[1746679285717,18.09227969,151.53,151.49,11.49292643]
[1746679287728,11.49292643,151.54,151.49,11.49292643]
[1746679288624,11.49292643,151.54,151.48,32.60146057]
[1746679288802,11.49292643,151.54,151.5,11.49292643]
[1746679289007,11.49292643,151.54,151.49,11.49292643]
[1746679289414,11.49292643,151.54,151.5,11.49292643]
[1746679289704,18.09177787,151.55,151.51,11.49292643]
[1746679289927,6.59885144,151.55,151.51,11.49292643]
[1746679290519,6.59885144,151.55,151.52,11.49292643]
[1746679290826,62.53625251,151.56,151.54,11.49292643]
[1746679291025,69.13450448,151.56,151.53,11.49292643]